bitfinex/quotes_ETHUSD_20241001
["timestamp","ask_amount","ask_price","bid_price","bid_amount"]
[1727797059404,0.04207783,2536.3,2536.2,3.94279]
[1727797059565,0.04207783,2536.3,2536.2,3.98181426]
[1727797059760,3.94197,2536.8,2536.2,4.02163632]
[1727797060009,3.94197,2536.8,2536.3,3.94272]
[1727797060168,3.94213,2536.7,2536.3,3.94272]
[1727797060362,3.98462069,2536.7,2536.2,4.02173632]
[1727797060599,0.04249069,2536.7,2536.3,3.94274]
[1727797060898,0.04249069,2536.7,2536.2,0.07884632]
[1727797060899,3.94231,2536.6,2536.2,0.07884632]
[1727797061202,3.94231,2536.6,2536.3,3.94275]
[1727797061203,0.04242417,2536.6,2536.3,3.94275]
[1727797061768,1.6172,2537.1,2536.5,3.94243]
[1727797062095,3.9408,2537.6,2537.1,3.94137]
[1727797062296,3.9408,2537.6,2537.1,3.98520045]
[1727797062495,1.6434,2537.7,2537.2,3.94133]
[1727797062724,0.89357984,2538.0,2537.5,3.94087]
[1727797063018,0.89357984,2538.0,2537.7,3.94055]
[1727797063182,0.89357984,2538.0,2537.6,3.94065]
[1727797063373,0.89357984,2538.0,2537.4,6.9409]
[1727797063374,4.83370984,2538.0,2537.4,6.9409]
[1727797063710,4.83369984,2538.0,2537.5,3.94087]
[1727797063912,4.83369984,2538.0,2537.6,3.0]
[1727797064065,1.77093682,2538.0,2537.3,3.94114]
[1727797064267,1.77093682,2538.0,2537.5,3.9408]
[1727797064483,4.83379984,2538.0,2537.5,3.9408]
[1727797064963,0.89357984,2538.0,2537.6,3.94072]
[1727797065665,4.83375984,2538.0,2537.5,3.9408]
[1727797065870,0.89357984,2538.0,2537.3,3.94108]
[1727797066070,3.94027,2537.9,2537.4,4.01971291]
[1727797066483,3.9409,2537.5,2537.0,6.94162]
[1727797066678,3.9409,2537.5,2536.8,1.5724]
[1727797066909,3.9409,2537.5,2536.7,3.94203]
[1727797066910,3.94104,2537.4,2536.7,7.88407]
[1727797067109,3.9409,2537.5,2536.7,3.94203]
[1727797067313,4.33514,2537.4,2536.7,7.88407]
[1727797067467,3.9412,2537.3,2536.7,3.94203]
[1727797067668,0.39409,2537.4,2536.7,3.94203]
[1727797067910,0.39409,2537.4,2536.8,3.94195]
[1727797068109,3.94068,2537.7,2536.8,3.94195]
[1727797068110,3.94073,2537.6,2537.0,3.94163]
[1727797068307,3.94098,2537.5,2536.7,3.94198]
[1727797068705,3.94158,2537.1,2536.0,4.337449]
[1727797068898,1.584,2537.2,2536.1,0.07883938]
[1727797069296,1.584,2537.2,2536.7,3.94201]
[1727797069669,0.48338498,2537.9,2537.0,7.8831]
[1727797069670,1.6255,2537.6,2537.0,7.8831]
[1727797069986,1.6255,2537.6,2537.1,4.02006915]
[1727797070775,1.6255,2537.6,2537.1,3.94141]
[1727797071208,1.6255,2537.6,2537.2,3.94133]
[1727797071616,1.6255,2537.6,2537.3,3.94117]
[1727797071825,1.5231,2537.9,2537.3,3.94117]
[1727797072024,6.09905198,2537.9,2536.8,3.556935]
[1727797072176,1.5231,2537.9,2537.1,3.94148]
[1727797072381,1.5231,2537.9,2537.3,3.94108]
[1727797072724,0.89357984,2538.0,2537.2,3.0]
[1727797072903,0.89357984,2538.0,2537.4,3.94088]
[1727797073217,3.94034,2537.9,2537.2,3.9413]
[1727797073520,5.57652,2537.8,2537.1,3.94138]
[1727797073721,5.57652,2537.8,2537.1,7.88281]
[1727797073904,1.6361,2537.8,2537.1,3.94138]
[1727797074297,1.6361,2537.8,2536.9,3.94179]
[1727797074496,1.6361,2537.8,2537.3,3.94107]
[1727797074693,1.6361,2537.8,2537.3,3.94111]
[1727797074906,1.6361,2537.8,2537.2,3.9413]
[1727797075089,1.6361,2537.8,2537.3,3.94107]
[1727797075296,1.6361,2537.8,2537.2,3.9413]
[1727797075528,1.6361,2537.8,2537.3,3.94115]
[1727797076221,1.6361,2537.8,2537.4,3.94098]
[1727797076519,1.6361,2537.8,2537.3,3.94112]
[1727797076831,1.6361,2537.8,2537.3,3.94119]
[1727797077197,6.66594108,2537.8,2537.2,3.94131]
[1727797077401,2.72544108,2537.8,2537.0,3.94158]
[1727797077601,12.14496135,2537.8,2537.1,3.9415]
[1727797077809,3.94058,2537.7,2537.1,3.94148]
[1727797078010,3.94082,2537.6,2536.7,1.6271]
[1727797078214,3.94088,2537.5,2536.7,1.6271]
[1727797078442,5.47896027,2537.4,2536.6,3.94217]
[1727797078632,9.42000027,2537.4,2536.7,3.94202]
[1727797078942,1.33609903,2537.3,2536.7,3.94202]
[1727797079449,3.94161,2537.1,2536.4,7.88501]
[1727797079619,3.94161,2537.1,2536.4,3.94249]
[1727797079813,1.527,2537.2,2536.0,0.394319]
[1727797079814,3.94167,2537.0,2536.0,4.337419]
[1727797080042,3.94167,2537.0,2536.1,3.94298]
[1727797080043,3.94199,2536.8,2536.1,3.94298]
[1727797080539,5.46842,2537.2,2536.5,3.94236]
[1727797080740,3.94152,2537.1,2536.5,3.94236]
[1727797080945,5.46842,2537.2,2536.5,3.94236]
[1727797081095,1.527,2537.2,2536.4,3.94254]
[1727797081439,1.527,2537.2,2536.6,3.94227]
[1727797081596,1.527,2537.2,2536.7,3.94211]
[1727797081793,1.527,2537.2,2536.7,3.98330202]
[1727797082033,1.527,2537.2,2536.7,3.98329202]
[1727797082238,5.46836,2537.2,2536.5,3.94232]
[1727797082395,5.46836,2537.2,2536.3,3.94264]
[1727797082396,3.94166,2537.0,2536.3,3.94264]
[1727797082598,10.35074,2537.2,2536.5,3.94243]
[1727797082795,3.94199,2536.8,2536.1,7.88594]
[1727797083000,3.94199,2536.8,2536.0,3.94321]
[1727797083001,3.94228,2536.6,2536.0,3.94321]
[1727797083225,3.94213,2536.7,2536.0,3.94311]
[1727797083410,3.94199,2536.8,2536.1,3.94294]
[1727797083611,3.94168,2537.0,2536.3,3.94274]
[1727797083813,3.94194,2536.9,2536.2,3.94289]
[1727797084013,2.46794,2537.2,2535.6,1.5327]
[1727797084014,5.50708,2536.5,2535.6,1.5327]
[1727797084215,5.50708,2536.5,2535.6,5.47653]
[1727797084216,3.94274,2536.4,2535.6,5.47653]
[1727797084417,1.5646,2536.5,2535.4,3.94404]
[1727797084418,3.94291,2536.2,2535.4,3.94404]
[1727797084714,3.94291,2536.2,2535.5,3.94388]
[1727797084913,3.94291,2536.2,2535.4,5.50792582]
[1727797084914,3.9431,2536.1,2535.4,5.50792582]
[1727797085143,3.9431,2536.1,2535.4,8.63897088]
[1727797085344,3.94306,2536.1,2535.5,3.94394]
[1727797085559,5.44863,2535.8,2535.2,0.81302494]
[1727797085749,5.44863,2535.8,2535.2,3.94436]
[1727797086590,1.5051,2535.8,2535.1,0.81302494]
[1727797086761,3.94401,2535.5,2535.0,0.81302494]
[1727797086918,3.94425,2535.4,2535.0,0.81302494]
[1727797087116,3.94431,2535.3,2535.0,0.81302494]
[1727797087421,1.6311,2535.1,2534.8,0.81302494]
[1727797087956,5.5758,2535.1,2534.7,0.81302494]
[1727797088451,5.5758,2535.1,2534.6,0.81302494]
[1727797088452,3.94493,2534.9,2534.6,0.81302494]
[1727797088804,3.94522,2534.8,2534.6,0.81302494]
[1727797089118,3.94493,2534.9,2534.3,0.81302494]
[1727797089119,3.94547,2534.6,2534.3,0.81302494]
[1727797089322,3.94547,2534.6,2534.1,1.21884388]
[1727797089323,5.47234,2534.5,2534.2,0.81302494]
[1727797089643,1.5267,2534.5,2534.1,0.81302494]
[1727797089854,1.5396,2535.5,2534.9,3.94477]
[1727797090011,1.5396,2535.5,2535.0,3.94464]
[1727797090652,1.5396,2535.5,2535.1,3.94459]
[1727797090849,1.5396,2535.5,2534.9,3.94492]
[1727797091048,1.5396,2535.5,2535.0,3.94474]
[1727797091348,1.5396,2535.5,2534.9,3.94492]
[1727797091551,1.5396,2535.5,2534.9,3.94483]
[1727797092142,6.29075014,2535.4,2534.3,3.81302494]
[1727797092344,3.94434,2535.3,2534.5,3.94547]
[1727797092646,1.5396,2535.5,2534.2,6.80881388]
[1727797092647,3.94529,2534.7,2534.2,0.81302494]
[1727797092807,1.5057,2534.9,2534.1,0.81302494]
[1727797093013,1.5057,2534.9,2534.2,3.94587]
[1727797093345,5.45077,2534.9,2534.2,3.94587]
[1727797093506,3.94512,2534.8,2534.2,3.94587]
[1727797093710,3.94526,2534.7,2534.0,4.75926494]
[1727797093909,3.94512,2534.8,2534.0,3.94622]
[1727797094167,2.445264,2534.9,2533.8,2.35092494]
[1727797094168,1.5057,2534.9,2534.4,7.89123]
[1727797094376,1.5057,2534.9,2534.7,3.94522]
[1727797094554,1.6188,2535.4,2534.7,0.789077]
[1727797094754,3.94347,2535.9,2535.2,3.94434]
[1727797094755,3.94338,2535.9,2535.2,3.94434]
[1727797094961,1.6188,2536.0,2534.8,3.94507]
[1727797095163,1.6188,2536.0,2535.4,3.94413]
[1727797095359,1.6188,2536.0,2535.4,3.94403]
[1727797095788,1.6188,2536.0,2535.2,3.94436]
[1727797095987,5.5621,2536.0,2535.3,3.9443]
[1727797096277,1.6188,2536.0,2535.4,3.94412]
[1727797096453,1.6188,2536.0,2535.6,3.94374]
[1727797096671,5.56202,2536.0,2535.4,4.732998]
[1727797096983,1.6188,2536.0,2535.5,3.94384]
[1727797097489,1.6188,2536.0,2534.9,3.0]
[1727797097691,2.37574587,2540.5,2536.0,3.94312]
[1727797097692,1.6418,2536.4,2536.0,3.94312]
[1727797097993,1.6418,2536.4,2535.8,3.94343]
[1727797098173,1.6418,2536.4,2535.1,0.45200692]
[1727797098174,3.94285,2536.3,2535.6,3.94375]
[1727797098494,3.94285,2536.3,2535.6,3.94373]
[1727797098495,0.558465,2536.3,2535.6,3.94373]
[1727797098649,4.501245,2536.3,2535.7,3.9436]
[1727797098849,4.501245,2536.3,2535.6,3.94373]
[1727797099155,1.6418,2536.4,2536.0,3.94308]
[1727797099349,1.6418,2536.4,2536.0,7.8862]
[1727797099693,3.94177,2537.0,2535.7,1.5028]
[1727797099861,1.5637,2536.7,2536.0,3.94321]
[1727797100061,1.5637,2536.7,2536.3,3.9426]
[1727797100294,1.5637,2536.7,2536.5,3.94243]
[1727797100506,1.5637,2536.7,2536.0,4.337521]
[1727797100507,1.5637,2537.1,2536.6,3.9422]
[1727797100801,1.5637,2537.1,2536.9,3.94169]
[1727797100998,1.6477,2537.4,2536.9,3.94169]
[1727797101347,12.22,2537.8,2537.1,3.94139]
[1727797101348,16.16051,2537.8,2537.1,3.94139]
[1727797101546,7.204321,2537.7,2537.0,3.94162]
[1727797102002,7.204321,2537.7,2536.9,3.94168]
[1727797102163,7.204321,2537.7,2537.0,4.01103692]
[1727797102364,3.94078,2537.6,2536.7,3.94203]
[1727797102568,3.94078,2537.6,2536.9,3.94178]
[1727797102914,0.7204531,2537.5,2536.9,3.94178]
[1727797103459,0.7204531,2537.5,2536.7,7.88403]
[1727797103695,4.6614231,2537.5,2536.7,3.94199]
[1727797104002,3.263751,2537.7,2536.5,3.0]
[1727797104200,3.263751,2537.7,2537.4,3.941]
[1727797104201,1.6477,2537.7,2537.4,3.941]
[1727797104361,12.22,2537.8,2537.6,7.88133]
[1727797104557,13.7848,2538.1,2537.7,3.94057]
[1727797104788,13.7848,2538.1,2537.5,3.94075]
[1727797105368,13.7848,2538.1,2537.5,3.94079]
[1727797105572,15.557263,2538.1,2537.5,3.94079]
[1727797105898,15.557263,2538.1,2537.5,3.94088]
[1727797106100,19.497223,2538.1,2537.5,3.94088]
[1727797106308,19.497223,2538.1,2537.4,3.94095]
[1727797106508,19.497223,2538.1,2537.1,4.6626]
[1727797106509,13.7848,2538.1,2537.6,3.9407]
[1727797106980,12.22,2538.1,2537.1,1.6626]
[1727797107181,12.22,2538.1,2537.9,3.94017]
[1727797107573,12.22,2538.1,2538.0,3.94011]
[1727797107758,1.586,2538.5,2538.0,3.94011]
[1727797107759,13.806,2538.5,2538.0,3.94011]
[1727797107961,15.974417,2538.5,2538.0,3.93999]
[1727797108161,13.806,2538.5,2538.2,3.93975]
[1727797108609,13.806,2538.5,2538.3,3.93964]
[1727797108897,13.806,2538.5,2538.2,3.93975]
[1727797109262,13.806,2538.5,2538.2,3.9397]
[1727797109552,13.806,2538.5,2538.0,3.93999]
[1727797109904,15.1866,2538.5,2537.9,3.94016]
[1727797110142,15.1866,2538.5,2537.9,3.94017]
[1727797110449,15.1866,2538.5,2537.8,3.94037]
[1727797110739,15.1866,2538.5,2537.9,3.94019]
[1727797111043,19.12596,2538.5,2537.8,3.94032]
[1727797111248,5.96288359,2538.4,2537.6,3.94064]
[1727797111609,3.93974,2538.3,2537.6,3.94064]
[1727797111811,3.54418644,2538.4,2537.4,3.94096]
[1727797112146,12.22,2538.3,2537.8,3.94039]
[1727797112348,13.6006,2538.3,2537.8,3.94039]
[1727797112559,13.6006,2538.3,2537.3,3.94114]
[1727797112708,12.22,2538.3,2538.0,3.94]
[1727797112915,13.806,2538.5,2538.1,3.93991]
[1727797113344,13.806,2538.5,2538.2,3.93977]
[1727797113656,13.806,2538.5,2538.1,3.93986]
[1727797113819,13.806,2538.5,2538.2,3.93971]
[1727797114014,13.806,2538.5,2538.1,3.93986]
[1727797114265,13.806,2538.5,2538.0,3.93999]
[1727797114764,19.519929,2538.5,2537.9,3.94011]
[1727797115261,15.580519,2538.5,2538.0,3.94002]
[1727797115560,15.580519,2538.5,2538.1,3.93994]
[1727797115716,15.580519,2538.5,2538.0,3.9401]
[1727797115918,15.580519,2538.5,2538.1,7.87979]
[1727797116124,13.806,2538.5,2538.2,3.9397]
[1727797116321,13.806,2538.5,2538.3,3.93953]
[1727797116758,13.806,2538.5,2538.1,3.93985]
[1727797117057,13.806,2538.5,2538.0,3.93998]
[1727797117265,13.806,2538.5,2538.3,3.93952]
[1727797117437,13.806,2538.5,2537.9,3.9402]
[1727797117438,13.806,2538.5,2538.4,3.93948]
[1727797117781,13.806,2538.5,2537.4,4.5978]
[1727797117782,13.806,2538.5,2538.2,3.93971]
[1727797117974,12.22,2538.5,2538.4,3.93948]
[1727797119652,13.7632,2539.1,2538.9,3.93862]
[1727797119829,13.7632,2539.1,2538.9,3.93864]
[1727797120027,12.22,2539.1,2539.0,3.93855]
[1727797120342,2.40831716,2539.6,2539.3,3.93807]
[1727797120343,12.22,2539.6,2539.3,3.93807]
[1727797120532,12.22,2539.6,2539.1,3.93829]
[1727797120844,12.22,2539.6,2539.5,3.93778]
[1727797121052,13.7608,2539.8,2539.5,3.93778]
[1727797121362,13.7608,2539.8,2539.7,3.93747]
[1727797121363,12.22,2539.8,2539.7,3.93747]
[1727797121926,16.94286443,2539.8,2539.6,3.9375]
[1727797122126,12.22,2539.8,2539.7,3.93747]
[1727797122327,16.94286443,2539.9,2539.8,3.93731]
[1727797122524,16.94286443,2539.9,2539.1,3.93834]
[1727797122525,18.45756443,2539.9,2538.7,1.5383]
[1727797122771,18.45756443,2539.9,2539.6,3.93751]
[1727797122772,4.72286443,2539.8,2539.6,3.93751]
[1727797122937,4.72286443,2539.7,2539.6,3.93751]
[1727797123138,4.72286443,2539.8,2539.7,3.93747]
[1727797123448,4.72286443,2539.8,2539.7,4.724968]
[1727797123648,12.22,2539.9,2539.8,3.93731]
[1727797123952,16.94286443,2540.0,2539.9,6.93716]
[1727797124199,12.22,2540.0,2539.9,6.93716]
[1727797124529,12.22,2540.0,2539.9,8.58366]
[1727797124723,12.22,2540.0,2539.9,9.9145068]
[1727797125252,1.5365,2540.9,2540.2,6.93669]
[1727797125253,12.22,2540.3,2540.2,6.93669]
[1727797125447,4.72286443,2540.5,2540.4,3.93638]
[1727797125448,16.94286443,2540.5,2540.4,3.93638]
[1727797125653,16.94286443,2540.5,2540.0,3.93693]
[1727797125875,16.94286443,2540.5,2539.8,3.93717]
[1727797125876,4.72286443,2540.4,2539.8,3.93717]
[1727797126031,2.08791944,2540.3,2539.7,3.93746]
[1727797126232,6.81078387,2540.3,2540.0,3.93689]
[1727797126565,2.08791944,2540.3,2539.7,3.93738]
[1727797126772,0.55,2540.2,2539.6,3.93762]
[1727797126946,0.55,2540.2,2539.4,3.93786]
[1727797126947,1.5038,2539.9,2539.4,3.93786]
[1727797127531,3.93751,2539.7,2539.0,3.93848]
[1727797127834,12.22,2539.6,2539.0,3.93848]
[1727797128547,12.22,2539.6,2538.8,3.93881]
[1727797128548,3.93781,2539.5,2538.8,3.93881]
[1727797128786,12.22,2539.2,2538.7,3.93889]
[1727797129198,6.84075014,2539.0,2537.5,0.3955]
[1727797129355,6.84075014,2539.0,2537.4,3.94095]
[1727797129356,6.84075014,2539.0,2538.5,3.93931]
[1727797129554,6.84075014,2539.0,2538.3,3.9396]
[1727797129555,12.22,2538.9,2538.3,3.93954]
[1727797129869,18.51148565,2538.9,2538.3,3.93954]
[1727797130205,20.0322985,2538.9,2538.3,3.93954]
[1727797130488,6.29075014,2538.6,2538.1,3.93991]
[1727797130687,12.22,2538.5,2538.0,3.94009]
[1727797130896,1.6453,2538.4,2537.9,3.9402]
[1727797131091,13.8653,2538.4,2537.9,3.94017]
[1727797131245,6.29075014,2538.2,2537.7,3.94048]
[1727797131450,6.29075014,2538.2,2537.8,3.94032]
[1727797131728,18.46234694,2538.4,2537.7,3.94048]
[1727797131869,3.93984,2538.2,2537.5,3.94074]
[1727797132048,7.87975,2538.2,2537.6,3.94072]
[1727797132251,3.93984,2538.2,2537.6,3.94072]
[1727797132490,0.55,2538.1,2537.5,3.94074]
[1727797132691,2.24021569,2538.2,2537.4,3.0]
[1727797132889,18.46228694,2538.4,2537.8,3.94033]
[1727797132890,0.55,2538.3,2537.8,3.94033]
[1727797133201,13.8653,2538.4,2537.4,3.0]
[1727797133487,0.55,2538.3,2537.7,3.94053]
[1727797133650,13.8653,2538.4,2537.4,3.0]
[1727797133852,13.8653,2538.4,2538.1,3.93984]
[1727797134989,13.8653,2538.4,2538.0,3.94009]
[1727797135213,13.8653,2538.4,2538.0,3.94002]
[1727797135510,6.29075014,2538.2,2537.5,7.88154]
[1727797135723,6.29075014,2538.2,2537.7,3.94056]
[1727797136207,6.29075014,2538.2,2537.8,3.94031]
[1727797136416,16.27483901,2538.4,2538.0,3.94001]
[1727797136571,16.27483901,2538.4,2538.1,3.93995]
[1727797136572,4.05483901,2538.4,2538.1,3.93995]
[1727797136772,4.05483901,2538.4,2538.0,3.94001]
[1727797136773,1.6453,2538.4,2538.0,3.94001]
[1727797137123,1.6453,2538.4,2538.2,3.9397]
[1727797137781,1.6453,2538.4,2538.3,3.93964]
[1727797138389,1.6453,2538.4,2538.2,3.9397]
[1727797138917,1.6453,2538.4,2538.0,7.88]
[1727797139075,1.6453,2538.4,2538.0,3.93999]
[1727797139275,1.6453,2538.4,2538.0,7.88002]
[1727797139513,1.6453,2538.4,2537.6,3.94071]
[1727797139514,10.78049014,2538.3,2537.8,3.9404]
[1727797139727,10.78048014,2538.3,2537.6,3.94062]
[1727797140014,2.203764,2538.4,2537.2,3.94132]
[1727797140015,6.29075014,2537.9,2537.2,3.94132]
[1727797140172,1.6168,2538.0,2537.2,3.94132]
[1727797140173,1.6168,2538.0,2537.8,3.9404]
[1727797140580,0.55,2537.7,2537.3,3.94111]
[1727797140916,6.84075014,2537.9,2536.8,3.94191]
[1727797141227,6.84075014,2537.9,2537.4,3.94095]
[1727797141228,0.55,2537.7,2537.4,3.94095]
[1727797141428,4.49052,2537.8,2537.2,3.94124]
[1727797141576,1.78980701,2537.8,2537.4,3.94095]
[1727797141777,0.55,2537.8,2537.0,0.0788223]
[1727797142013,1.6168,2538.0,2537.9,3.94026]
[1727797142413,1.6158,2538.6,2538.2,3.9397]
[1727797142588,1.6158,2538.6,2537.8,3.94039]
[1727797142589,1.6158,2538.6,2537.4,3.94099]
[1727797142788,1.6158,2538.6,2538.3,7.87912]
[1727797143089,1.6158,2538.6,2538.5,3.93933]
[1727797143300,1.5598,2539.0,2538.8,3.93883]
[1727797143493,1.5598,2539.0,2538.7,3.93889]
[1727797143692,1.5598,2539.0,2538.6,3.93905]
[1727797143899,1.5598,2539.0,2538.7,3.93902]
[1727797144116,1.5598,2539.0,2538.5,3.93933]
[1727797144311,1.5598,2539.0,2538.3,3.93955]
[1727797144312,2.109631,2539.0,2538.3,3.93955]
[1727797144614,3.93904,2538.7,2538.1,7.87966]
[1727797144828,3.93904,2538.7,2538.1,7.87968]
[1727797144829,0.55,2538.6,2538.1,7.87968]
[1727797144977,0.998904,2538.6,2538.2,3.93979]
[1727797145174,0.998904,2538.6,2538.2,3.93975]
[1727797145375,0.998904,2538.6,2538.3,3.93963]
[1727797145616,0.998904,2538.6,2538.1,3.93981]
[1727797145823,0.998904,2538.6,2538.3,3.93953]
[1727797145824,0.55,2538.6,2538.3,3.93953]
[1727797145979,2.109631,2539.0,2538.5,3.93923]
[1727797146323,2.109631,2539.0,2538.7,3.93898]
[1727797146619,3.93872,2538.9,2538.3,3.9395]
[1727797146855,3.93878,2538.9,2538.1,7.87976]
[1727797147134,3.93878,2538.9,2538.3,3.93956]
[1727797147444,0.55,2538.8,2538.3,3.93956]
[1727797147610,4.48887,2538.8,2538.3,3.93956]
[1727797147814,0.842765,2538.7,2538.3,3.93956]
[1727797148015,0.842765,2538.7,2538.3,3.93955]
[1727797148747,0.842765,2538.7,2538.2,3.93976]
[1727797148748,4.781875,2538.7,2538.2,3.93976]
[1727797149049,3.93941,2538.5,2538.0,3.94001]
[1727797149340,0.55,2538.4,2537.9,4.75319494]
[1727797149497,0.55,2538.4,2538.0,3.94009]
[1727797149701,1.5994,2538.6,2538.3,3.93964]
[1727797149901,1.5994,2538.6,2537.8,0.81302494]
[1727797149902,1.5994,2538.6,2538.1,3.93988]
[1727797150142,1.5994,2538.6,2538.2,3.93978]
[1727797150741,1.5994,2538.6,2538.3,3.93963]
[1727797151103,1.5994,2538.6,2538.1,7.8797]
[1727797151303,1.5994,2538.6,2537.9,4.75314494]
[1727797151304,3.93949,2538.4,2537.9,4.75314494]
[1727797151513,6.29075014,2538.2,2537.9,4.75314494]
[1727797151807,0.55,2538.5,2538.1,3.93981]
[1727797152036,0.55,2538.5,2538.1,8.69269494]
[1727797152203,0.55,2538.5,2538.1,8.69270494]
[1727797152404,12.77720714,2538.6,2538.2,0.81302494]
[1727797152405,1.5994,2538.6,2538.2,0.81302494]
[1727797152708,1.6326,2539.1,2538.7,3.93894]
[1727797153059,1.6326,2539.6,2538.8,3.93886]
[1727797153204,1.6326,2539.6,2539.3,3.938]
[1727797153403,1.6326,2539.6,2539.5,3.93778]
[1727797153841,1.6175,2540.1,2539.7,3.93745]
[1727797154252,1.6175,2540.1,2539.3,3.93806]
[1727797154253,1.6175,2540.1,2539.0,6.93855]
[1727797154484,1.6175,2540.1,2539.8,3.93723]
[1727797155293,1.6175,2540.1,2539.6,7.87502]
[1727797155455,0.93246512,2540.0,2539.7,3.93739]
[1727797156298,0.93246512,2540.0,2539.6,3.93759]
[1727797156458,0.93246512,2540.0,2539.7,3.93745]
[1727797156789,0.93246512,2540.0,2539.6,3.93759]
[1727797156790,0.93246512,2540.0,2539.6,7.8751]
[1727797156992,2.0591,2539.9,2539.3,3.93796]
[1727797157154,0.55,2539.7,2539.2,3.93813]
[1727797157355,0.55,2539.7,2539.2,7.87624]
[1727797157556,0.55,2539.7,2539.1,3.93825]
[1727797157857,0.55,2539.7,2538.7,1.6138]
[1727797157858,2.1131,2539.4,2538.9,3.93862]
[1727797158492,2.1131,2539.4,2539.1,3.93839]
[1727797158769,2.718172,2539.4,2539.1,3.93839]
[1727797158972,1.5631,2539.4,2539.1,3.93839]
[1727797159980,1.5631,2539.4,2539.2,3.93821]
[1727797160184,1.5631,2539.4,2539.1,3.93832]
[1727797160408,1.5631,2539.4,2538.9,3.93865]
[1727797160917,1.5631,2539.4,2539.1,3.93832]
[1727797161369,2.113174,2539.4,2539.1,3.93832]
[1727797161770,2.113174,2539.4,2539.1,3.9383]
[1727797162009,1.5631,2539.4,2539.1,3.9383]
[1727797162195,1.5631,2539.4,2539.1,7.8766]
[1727797162383,1.5631,2539.4,2539.3,3.93809]
[1727797162581,1.5631,2539.4,2539.1,3.93837]
[1727797162793,1.5631,2539.4,2538.8,3.93872]
[1727797163001,0.55,2539.3,2538.9,3.93869]
[1727797163205,1.155112,2539.3,2538.8,3.93883]
[1727797163518,1.155112,2539.3,2538.8,3.93886]
[1727797163519,0.605112,2539.3,2538.8,3.93886]
[1727797163811,3.93836,2539.2,2538.7,3.9389]
[1727797164017,3.93842,2539.1,2538.6,3.93906]
[1727797164185,3.93835,2539.2,2538.6,3.93906]
[1727797164186,0.787677,2539.0,2538.6,7.87814]
[1727797164508,0.605112,2539.3,2538.5,3.9393]
[1727797164682,3.93857,2539.0,2538.5,3.9393]
[1727797165004,4.48828,2539.2,2538.6,3.93908]
[1727797165207,4.48828,2539.2,2538.7,3.93893]
[1727797165623,0.55,2539.2,2538.8,3.93886]
[1727797165835,0.55,2539.2,2538.6,3.93908]
[1727797165836,1.84469921,2539.2,2538.6,3.93907]
[1727797165987,5.78297921,2539.2,2538.6,3.93903]
[1727797166187,5.78297921,2539.2,2538.5,3.93929]
[1727797166635,9.72130921,2539.2,2538.7,3.93899]
[1727797166785,1.03264212,2539.1,2538.7,3.93899]
[1727797167133,11.79185014,2539.4,2539.1,3.93838]
[1727797167134,1.5631,2539.4,2539.1,3.93838]
[1727797167783,1.5631,2539.4,2539.1,3.93832]
[1727797168220,1.5631,2539.4,2539.2,3.93823]
[1727797168432,1.5631,2539.4,2539.1,3.93831]
[1727797168884,1.5631,2539.4,2539.0,3.93853]
[1727797169089,2.506953,2539.4,2539.0,3.93853]
[1727797169636,2.506953,2539.4,2538.7,3.93891]
[1727797169932,6.0207849,2539.3,2538.5,3.93925]
[1727797170086,9.9589649,2539.3,2538.7,3.93887]
[1727797170290,9.9589649,2539.3,2538.3,3.93962]
[1727797170291,5.4707849,2539.3,2539.0,3.93847]
[1727797170611,1.5631,2539.4,2539.2,3.93811]
[1727797170821,1.5631,2539.4,2539.1,3.93837]
[1727797171112,1.5631,2539.4,2539.2,3.93812]
[1727797171315,1.5631,2539.4,2538.9,3.93869]
[1727797171608,5.50104,2539.4,2538.9,3.93869]
[1727797171813,2.113204,2539.4,2538.8,3.93877]
[1727797171990,2.113204,2539.4,2539.0,3.93853]
[1727797171991,1.5631,2539.4,2539.0,3.93853]
[1727797172187,1.5631,2539.4,2538.8,3.93873]
[1727797172605,9.4088949,2539.3,2538.8,3.93873]
[1727797172782,5.4707849,2539.3,2538.8,3.93873]
[1727797172988,5.4707849,2539.3,2538.6,3.93907]
[1727797173200,5.4707849,2539.3,2539.0,3.93852]
[1727797173526,10.50606939,2539.3,2538.8,3.93877]
[1727797173731,3.93849,2539.1,2538.6,3.93905]
[1727797174035,3.93849,2539.1,2538.4,3.93937]
[1727797174036,10.50604939,2539.3,2538.8,3.93886]
[1727797174253,3.93832,2539.2,2538.7,3.93898]
[1727797174540,5.53906694,2539.2,2538.7,3.93898]
[1727797174837,1.60074694,2539.2,2538.2,3.93978]
[1727797175047,1.5631,2539.4,2539.0,3.93851]
[1727797175198,1.5631,2539.4,2539.1,3.93838]
[1727797175402,1.5631,2539.4,2539.0,3.93851]
[1727797175602,1.5631,2539.4,2538.5,5.46608]
[1727797175603,1.5631,2539.4,2539.1,3.93837]
[1727797176638,1.5631,2539.4,2539.1,3.93832]
[1727797177155,1.5631,2539.4,2539.2,3.93824]
[1727797177444,1.5631,2539.4,2539.1,3.93827]
[1727797179135,1.5631,2539.4,2539.2,3.93823]
[1727797179374,1.5631,2539.4,2539.1,3.93827]
[1727797179517,1.5631,2539.4,2539.0,3.93855]
[1727797179836,2.113201,2539.4,2539.1,3.93838]
[1727797180211,2.113201,2539.4,2539.1,3.93831]
[1727797180602,2.113201,2539.4,2539.1,3.93829]
[1727797181052,2.113201,2539.4,2539.2,3.93821]
[1727797181053,1.5631,2539.4,2539.2,3.93821]
[1727797181343,1.5907,2539.7,2539.3,3.93809]